Cogmind - Beta 17.1 @@@ ROGUE MODE // 2026.09.06 @ 04:15:22 Player: mischief_2000 Result: Destroyed by P-70 Sage with High-powered Shock Rifle Performance ------------- Evolutions (5) 2500 Regions Visited (16) 3200 Robots Destroyed (230) 1150 Value Destroyed (7427) 7427 Prototype IDs (40) 800 Alien Tech Used (0) 0 Bonus (5122) 5122 TOTAL SCORE: 20199 Bonus ------- Triggered High Security 500 High Alert Combat Kills 2446 Follower Combat Kills 1804 Entered DSFs 500 Aligned with FarCom 300 Met Data Miner 300 Friendly Fire -728 Cogmind --------- Core Integrity 0/1000 Matter 31/300 Energy 27/100 System Corruption 16% Temperature Cool (0) Movement Hovering (40) Location -5/Factory Parts ------- > --- POWER (1) -------- (None) > --- PROPULSION (5) --- Linear Gravjet > --- UTILITY (7) ------ (None) > --- WEAPON (4) ------- (None) > --- INVENTORY (5) ---- Large Storage Unit Hacking Suite Hacking Suite Hacking Suite Authchip [Processor] Peak State ------------ > --- POWER ------------ Micro Antimatter Reactor > --- PROPULSION ------- Armored Leg Thunder Leg Thunder Leg Thunder Leg Antigrav System > --- UTILITY ---------- Improved Cooling System High-capacity Storage Unit Improved Launcher Guidance Computer Improved Propulsion Shielding Heart of Steel > --- WEAPON ----------- Advanced Plasma Cannon Long-range Missile Launcher Long-range Missile Launcher Enhanced Force Lance > --- INVENTORY -------- Light Deuterium Engine Micro Fission Core Flexi-carbon Leg Linear Gravjet Linear Gravjet Linear Gravjet Linear Gravjet Linear Gravjet Large Storage Unit Improved Launcher Guidance Computer Advanced Remote Force Field Hacking Suite Hacking Suite Hacking Suite Authchip [Processor] Firepult Long-range Missile Launcher Long-range Missile Launcher Improved Plasma Cutter [Rating: 109] Favorites ----------- Power Deuterium Engine Engine Deuterium Engine Power Core Micro Fission Core Reactor Micro Antimatter Reactor Propulsion Armored Huge Wheel Treads Light Treads Leg Thunder Leg Wheel Armored Huge Wheel Hover Unit Linear Gravjet Flight Unit Improved Flight Unit Utility Improved Heat Sink Device Improved Heat Sink Storage High-capacity Storage Unit Processor Advanced Targeting Computer Protection Improved Medium Armor Plating Weapon Heavy Particle Gun Energy Gun Heavy Particle Gun Energy Cannon Advanced Plasma Cannon Ballistic Gun Light Assault Rifle Ballistic Cannon Flak Cannon Launcher Long-range Missile Launcher Special Weapon Mining Laser Piercing Weapon Enhanced Force Lance Build | -11 -10 -10 -10 -9 -8 -8 -7 -7 -7 -7 -6 -6 -6 -5 -5 -5 ------- Run | Yrd Mat Min Exi Min Mat Sto Fac Low Low Dat Pro Fac DSF Fac Was Fac Slots Evolved 10 | . . . . . 4 . 2 . . . . 2 . 2 . . Power . | . . . . . . . . . . . . . . . . . Propulsion 3 | . . . . . 1 . 1 . . . . . . 1 . . Utility 5 | . . . . . 2 . 1 . . . . 1 . 1 . . Weapon 2 | . . . . . 1 . . . . . . 1 . . . . Parts Attached 116 | 7 9 . . 1 21 13 8 1 1 . 11 1 22 4 6 11 Power 12 | 1 1 . . . 3 . 1 . . . 2 . 1 . 1 2 Engine 7 | 1 1 . . . 1 . 1 . . . 2 . . . . 1 Core 3 | . . . . . 2 . . . . . . . 1 . . . Reactor 2 | . . . . . . . . . . . . . . . 1 1 Propulsion 32 | 2 2 . . 1 4 5 3 . . . 2 . 5 2 . 6 Treads 9 | . 1 . . 1 3 2 2 . . . . . . . . . Leg 8 | 2 . . . . . . . . . . 1 . . . . 5 Wheel 6 | . 1 . . . 1 1 1 . . . 1 . 1 . . . Hover 8 | . . . . . . 1 . . . . . . 4 2 . 1 Flight 1 | . . . . . . 1 . . . . . . . . . . Utility 33 | 2 2 . . . 6 2 4 . 1 . 3 1 5 1 4 2 Device 16 | 1 . . . . 3 2 2 . . . 1 1 2 . 3 1 Storage 5 | 1 2 . . . . . . . . . . . 1 . . 1 Processor 7 | . . . . . 3 . 1 . . . . . 2 1 . . Hackware . | . . . . . . . . . . . . . . . . . Protection 5 | . . . . . . . 1 . 1 . 2 . . . 1 . Artifact . | . . . . . . . . . . . . . . . . . Weapon 39 | 2 4 . . . 8 6 . 1 . . 4 . 11 1 1 1 Energy Gun 10 | . 1 . . . . 5 . 1 . . 3 . . . . . Energy Cannon 6 | . . . . . 1 . . . . . . . 3 1 . 1 Ballistic Gun 7 | 2 2 . . . 3 . . . . . . . . . . . Ballistic Cannon 7 | . . . . . 2 . . . . . 1 . 4 . . . Launcher 7 | . . . . . 2 1 . . . . . . 4 . . . Special Weapon 1 | . 1 . . . . . . . . . . . . . . . Impact Weapon . | . . . . . . . . . . . . . . . . . Slashing Weapon . | . . . . . . . . . . . . . . . . . Piercing Weapon 1 | . . . . . . . . . . . . . . . 1 . Special Melee Weapon . | . . . . . . . . . . . . . . . . . Unidentified Prototypes 5 | . . . . . . 3 . . . . . . 1 . 1 . Parts Lost 41 | . 1 . . . 3 1 . . . . 9 . 6 . . 21 Power 6 | . 1 . . . 1 . . . . . 2 . . . . 2 Propulsion 11 | . . . . . 1 1 . . . . 1 . . . . 8 Utility 11 | . . . . . . . . . . . 3 . 4 . . 4 Weapon 13 | . . . . . 1 . . . . . 3 . 2 . . 7 Highest Loss Streak 21 | . 1 . . . 3 1 . . . . 3 . 6 . . 21 To Critical Strikes 1 | . . . . . . . . . . . . . . . . 1 Average Backups 14 | 5 11 15 14 13 14 15 16 16 14 14 13 13 13 13 14 18 Power 1 | . 1 1 1 1 . 1 1 1 1 1 1 2 1 1 1 1 Propulsion 3 | 3 3 1 1 1 2 4 3 3 3 3 3 2 1 1 1 5 Utility 5 | . 4 10 8 7 6 6 6 6 4 4 3 4 6 6 6 7 Weapon 4 | 1 2 2 3 4 4 3 5 6 5 5 4 3 4 4 5 3 Tool/Special . | . . . . . . . . . . . . . . . . . Unused Backups 44 | 1 5 1 3 . 7 3 6 1 2 . . . 5 . 1 9 Power 2 | . 1 . . . 1 . . . . . . . . . . . Propulsion 10 | 1 3 1 . . 1 1 1 . . . . . 2 . . . Utility 23 | . . . 3 . 3 1 4 1 1 . . . 2 . 1 7 Weapon 8 | . 1 . . . 2 1 1 . 1 . . . 1 . . 1 Tool/Special 1 | . . . . . . . . . . . . . . . . 1 Average Slot Usage (%) 86 | . 99 100 100 100 90 94 84 92 92 92 88 77 70 54 70 76 Engine 6 | . 13 14 14 14 5 9 7 7 7 7 6 6 2 . . 2 Core 1 | . . . . . 3 . . . . . . . 3 5 4 2 Treads 9 | . 8 14 14 14 25 16 2 15 15 15 8 . . . . . Leg 5 | . 10 . . . . . . . . . 4 . . . . 22 Wheel 5 | . 8 14 14 14 . 5 13 7 7 7 7 13 5 . . . Hover 2 | . . . . . . . . . . . . . 15 28 29 3 Device 12 | . 14 14 14 14 8 9 13 15 15 15 17 21 13 5 10 10 Storage 7 | . 14 14 14 14 9 9 7 7 7 7 7 6 6 5 5 4 Processor 5 | . . . . . 11 18 14 7 . . . . 4 6 6 4 Protection 4 | . . . . . . . . 7 14 15 11 6 1 . 3 4 Energy Gun 10 | . 9 . . . . 8 23 21 22 23 21 23 2 . 3 . Energy Cannon 1 | . . . . . 3 6 . . . . . . 5 . . 3 Ballistic Gun 4 | . 18 28 28 28 8 . . . . . . . . . . . Ballistic Cannon 2 | . . . . . 14 11 . . . . . . 3 . . . Launcher 2 | . . . . . . . . 1 . . . . 5 . . 8 Peak Build Rating 109 | 7 10 10 11 11 33 41 52 52 54 54 57 62 91 97 96 109 Average Rating 50 | 6 8 9 10 10 26 36 50 51 53 54 53 56 73 76 87 94 On Entrance 40 | . 7 9 10 11 10 33 41 51 52 54 54 54 62 75 79 90 Avg Prop Armor Cover (%) 9 | . 13 14 14 14 13 9 11 12 9 10 8 . 5 3 3 2 Naked Turns . | . . . . . . . . . . . . . . . . . Heaviest Build 98 | 14 51 28 28 28 65 68 67 70 77 74 77 78 98 57 51 95 Greatest Support 105 | 20 20 16 16 40 60 60 56 28 28 28 56 56 56 47 47 105 Greatest Overweight (x) 14 | . 3 1 1 1 3 2 2 2 2 2 2 1 3 1 14 6 Average Overweight (x) 1 | . . 1 1 . . 1 1 2 2 2 1 1 1 . . . Largest Inventory Capacity 20 | 8 20 15 15 15 20 20 20 20 20 20 20 20 20 15 15 20 Average Capacity 18 | 7 12 15 15 15 16 20 20 20 20 20 20 20 18 15 15 19 Most Carried 20 | 8 15 15 15 14 20 20 20 20 20 20 20 19 20 15 15 20 Average Carried 17 | 5 11 15 14 14 16 19 19 20 19 20 19 18 15 14 14 19 Final Capacity 20 | 8 15 15 15 15 20 20 20 20 20 20 20 20 15 15 15 5 Final Carried 20 | 8 15 15 14 14 20 20 20 20 20 20 18 18 14 15 15 5 Class Distribution -------------------- 28% | Mutant 22% | Skirmisher 17% | Tank 12% | Scavenger-Skirmisher 10% | Gunner 4% | Scavenger-Tank Dominant Class ---------------- Mutant | -10/Materials Mutant | -10/Mines Mutant | -10/Exiles Mutant | -9/Mines Skirmisher | -8/Materials Skirmisher | -8/Storage Skirmisher | -7/Factory Gunner | -7/Lower Caves Tank | -7/Lower Caves Tank | -7/Data Miner Tank | -6/Proximity Caves Scavenger-Skirmisher | -6/Factory Skirmisher | -6/DSF Sprinter | -5/Factory Scavenger-Mutant | -5/Waste Mutant | -5/Factory Resources | -11 -10 -10 -10 -9 -8 -8 -7 -7 -7 -7 -6 -6 -6 -5 -5 -5 ----------- Run | Yrd Mat Min Exi Min Mat Sto Fac Low Low Dat Pro Fac DSF Fac Was Fac Matter Collected 5377 | 338 343 20 . . 656 824 80 59 43 . 330 . 691 107 252 1634 Remotely 1187 | . . . . . 241 124 . . . . . . . . . 822 Salvage Created 8033 | 185 793 20 . . 674 1121 808 303 320 . 898 . 792 148 319 1652 Parts 362 | 24 55 . . . 36 54 40 14 10 . 29 . 30 7 3 60 Haulers Intercepted 10 | . 1 . . . 1 6 1 . . . . . . 1 . . Recyclers Shooed 10 | 1 2 . . . 2 1 1 . . . . . . . . 3 Parts Field Recycled . | . . . . . . . . . . . . . . . . . Retrieved Matter . | . . . . . . . . . . . . . . . . . Parts Self-Destructed 47 | . . . . . . . . 12 8 . 27 . . . . . Prevented 1 | . . . . . . . . . . . 1 . . . . . Parts Restored . | . . . . . . . . . . . . . . . . . Kills | -11 -10 -10 -10 -9 -8 -8 -7 -7 -7 -7 -6 -6 -6 -5 -5 -5 ------- Run | Yrd Mat Min Exi Min Mat Sto Fac Low Low Dat Pro Fac DSF Fac Was Fac Combat Hostiles Destroyed 150 | . 15 1 . . 15 22 4 9 4 . 18 . 14 . . 48 Melee 1 | . . . . . . . . . . . . . . . . 1 Guns 50 | . 15 1 . . 7 7 4 2 1 . 12 . 1 . . . Cannons 22 | . . . . . 6 10 . . . . 2 . 3 . . 1 AOE 75 | . . . . . 2 5 . 7 3 . 2 . 10 . . 46 Classes Destroyed 22 | 3 7 1 . . 2 . 1 . . . 3 . 3 . . 2 Worker 16 | 1 1 . . . 3 4 3 . . . . . . . . 4 Builder 9 | . 2 . . . 1 3 . . . . . . . . . 3 Tunneler 8 | 5 . . . . . . 1 . . . . . . 2 . . Hauler 10 | . 1 . . . 1 6 1 . . . . . . 1 . . Recycler 18 | 1 1 . . . 4 3 6 . . . . . . . . 3 Carrier 1 | . . . . . . . . . . . . . 1 . . . Mechanic 3 | . 1 . . . . . . . . . 1 . . . . 1 Operator 7 | . 2 . . . 2 1 2 . . . . . . . . . Drone 2 | . . . . . . . . . . . 2 . . . . . Watcher 7 | . 3 . . . 1 1 . . . . . . . . . 2 Swarmer 33 | . 6 . . . 4 4 . 8 4 . 4 . . . . 3 Saboteur 1 | . . . . . . . . . . . . . . . . 1 Grunt 63 | . 9 . . . 5 11 2 . . . 5 . 9 . . 22 Brawler 8 | . . . . . . . . . . . 3 . . . . 5 Duelist 5 | . . . . . . . . . . . 2 . 1 . . 2 Protector 4 | . . . . . . . . . . . . . . . . 4 Sentry 12 | . . . . . 4 6 . . . . 2 . . . . . Specialist 2 | . . . . . . . . . . . . . 2 . . . Hunter 13 | . . . . . 2 1 . 1 . . . . 1 . . 8 Programmer 4 | . . . . . . . 2 . . . . . . . . 2 Heavy 1 | . . . . . . . . . . . . . 1 . . . Packrat 2 | . . . . . . . . 2 . . . . . . . . Assembled 1 | . . 1 . . . . . . . . . . . . . . Surgeon 1 | . . . . . . . . . . . . . . . . 1 Thug 1 | . . . . . . . . . . . . . . . . 1 Savage 1 | . . . . . . . . . . . . . . . . 1 Best Kill Streak 13 | 3 9 1 . . 11 8 6 4 4 . 5 . 8 3 . 13 Combat Bots Only 12 | . 5 1 . . 6 6 2 4 4 . 5 . 7 . . 12 Max Kills in Single Turn 5 | 1 2 1 . . 3 4 1 4 4 . 2 . 4 2 . 5 Gunslinging . | . . . . . . . . . . . . . . . . . Exploded 4 | . . . . . 2 3 . 4 3 . 1 . 4 . . 4 Melee 1 | . . . . . . . . . . . . . . . . 1 Uniques/NPCs Destroyed . | . . . . . . . . . . . . . . . . . Combat | -11 -10 -10 -10 -9 -8 -8 -7 -7 -7 -7 -6 -6 -6 -5 -5 -5 -------- Run | Yrd Mat Min Exi Min Mat Sto Fac Low Low Dat Pro Fac DSF Fac Was Fac Hostile Shots Fired 760 | . 57 6 . . 77 52 9 17 3 . 150 . 73 . . 316 Missed 248 | . 20 1 . . 26 18 5 9 . . 44 . 18 . . 107 Hits 512 | . 37 5 . . 51 34 4 8 3 . 106 . 55 . . 209 Melee 13 | . . 5 . . . . . . . . 5 . . . . 3 Projectile 499 | . 37 . . . 51 34 4 8 3 . 101 . 55 . . 206 AOE 4 | . . . . . . . . . . . . . . . . 4 Critical Strikes 17 | . . . . . 2 1 1 . . . 4 . 1 . . 8 Part Disruptions 2 | . . . . . . . . . . . . . 2 . . . Damage Taken 9770 | . 380 155 . . 729 434 59 169 52 . 1980 . 1621 77 . 4114 Core 1791 | . 69 61 . . 31 53 14 . . . 174 . 381 29 . 979 Absorbed by Shields 92 | . . . . . . 92 . . . . . . . . . . Redirected to Shielding 107 | . . . . . . . . . . . . . . . . 107 Regen/Repaired (Parts) 209 | . . . . . . 25 . . . . . . . . 8 176 Core Remaining (%) 72 | 100 . . . 48 . 84 . . . . 73 . 55 . . . Volleys Fired 399 | 17 80 6 . . 36 61 32 8 12 . 54 . 27 2 2 62 Largest 4 | 2 2 2 . . 3 3 3 3 3 . 3 . 4 1 2 4 Hottest 290 | 40 100 40 . . 99 189 173 173 173 . 173 . 290 250 80 250 Shots Fired 965 | 34 155 12 . . 104 162 94 24 36 . 144 . 82 2 4 112 Gun 596 | 34 154 12 . . 44 42 94 21 35 . 128 . 28 . 4 . Cannon 257 | . . . . . 55 116 . . . . 11 . 38 2 . 35 Launcher 111 | . . . . . 5 4 . 3 1 . 5 . 16 . . 77 Special 1 | . 1 . . . . . . . . . . . . . . . Kinetic 343 | 34 104 12 . . 99 76 . . . . 11 . 7 . . . Thermal 482 | . 51 . . . . 82 94 20 35 . 105 . 54 2 4 35 Explosive 111 | . . . . . 5 4 . 3 1 . 5 . 16 . . 77 Electromagnetic 29 | . . . . . . . . 1 . . 23 . 5 . . . Robot Hit Streak 24 | 8 8 6 . . 8 17 13 10 16 . 20 . 24 16 4 9 Robot Miss Streak 10 | 4 10 1 . . 8 4 5 3 2 . 4 . 2 1 1 3 Penetration Max . | . . . . . . . . . . . . . . . . . Secondary Targets 7 | . 1 . . . . . 1 . . . 5 . . . . . Max Gunslinging Chain 1 | . 1 . . . . . 1 . . . 1 . . . . . Shots Hit Robots 575 | 20 86 10 . . 70 99 43 14 22 . 94 . 47 2 7 61 Core Hits 532 | 10 37 3 . . 74 100 22 12 10 . 42 . 46 4 2 170 Critical Kills 3 | 1 . . . . 2 . . . . . . . . . . . Critical Parts Destroyed 1 | . . . . . 1 . . . . . . . . . . . Critical Strikes 16 | 1 1 . . . 3 2 2 1 . . 4 . 2 . . . Burn 12 | . 1 . . . . 2 2 1 . . 4 . 2 . . . Destroy 4 | 1 . . . . 3 . . . . . . . . . . . Melee Attacks 10 | . . . . . . . . . . . . . . . 4 6 Impact . | . . . . . . . . . . . . . . . . . Slashing . | . . . . . . . . . . . . . . . . . Piercing 10 | . . . . . . . . . . . . . . . 4 6 Sneak Attacks 2 | . . . . . . . . . . . . . . . . 2 Combat Hostiles . | . . . . . . . . . . . . . . . . . Follow-up Attacks . | . . . . . . . . . . . . . . . . . Damage Inflicted 25801 | 214 1154 79 . . 2015 2894 894 620 622 . 2191 . 2815 154 227 11922 Guns 6156 | 214 1154 79 . . 608 522 894 247 398 . 1647 . 354 . 39 . Cannons 4043 | . . . . . 611 1899 . . . . 233 . 610 64 . 626 Explosions 15179 | . . . . . 796 473 . 373 224 . 311 . 1851 90 . 11061 Melee 418 | . . . . . . . . . . . . . . . 188 230 Ramming 5 | . . . . . . . . . . . . . . . . 5 Kinetic 3904 | 214 686 79 . . 1219 1392 . . . . 233 . 81 . . . Thermal 6348 | . 468 . . . . 1029 894 247 398 . 1536 . 862 154 39 721 Explosive 14866 | . . . . . 796 473 . 373 224 . 239 . 1851 . . 10910 Electromagnetic 260 | . . . . . . . . . . . 183 . 21 . . 56 Impact . | . . . . . . . . . . . . . . . . . Slashing . | . . . . . . . . . . . . . . . . . Piercing 418 | . . . . . . . . . . . . . . . 188 230 Highest Corruption 16 | . . . . . . . 1 1 1 1 1 . 8 . . 16 Average Corruption 2 | . . . . . . . 1 1 1 1 1 . 7 . . 9 Corruption Purged . | . . . . . . . . . . . . . . . . . Corruption Blocked . | . . . . . . . . . . . . . . . . . Effects 42 | . . . . . . . . 3 4 . 18 . 14 . . 3 Message Errors 11 | . . . . . . . . 1 2 . 5 . 3 . . . Matter Fused 8 | . . . . . . . . . . . 5 . 2 . . 1 Heat Flow Errors 7 | . . . . . . . . . 1 . 2 . 3 . . 1 Energy Discharges 3 | . . . . . . . . 2 . . . . 1 . . . Parts Rejected 1 | . . . . . . . . . . . . . . . . 1 Data Loss (minor) 7 | . . . . . . . . . 1 . 4 . 2 . . . Data Loss (major) 1 | . . . . . . . . . . . . . 1 . . . Misfires 3 | . . . . . . . . . . . 1 . 2 . . . Weapon Failures 1 | . . . . . . . . . . . 1 . . . . . Overload Shots . | . . . . . . . . . . . . . . . . . Overflow Damage 525 | . . . . . . 39 . 18 13 . 22 . 60 . . 373 Projectiles 19 | . . . . . . . . . . . . . . . . 19 Explosions 442 | . . . . . . 39 . 18 13 . 22 . 60 . . 290 Melee 64 | . . . . . . . . . . . . . . . . 64 Knockbacks 22 | . . . . . 17 5 . . . . . . . . . . Impact . | . . . . . . . . . . . . . . . . . Kinetic 20 | . . . . . 16 4 . . . . . . . . . . Secondary 2 | . . . . . 1 1 . . . . . . . . . . Self-Inflicted Damage 214 | . . . . . . . . 41 . . 77 . . . . 96 Shots 7 | . . . . . . . . 1 . . 2 . . . . 4 Rammed . | . . . . . . . . . . . . . . . . . Targets Rammed 1 | . . . . . . . . . . . . . . . . 1 Kicked 1 | . . . . . . . . . . . . . . . . 1 Crushed . | . . . . . . . . . . . . . . . . . Highest Temperature 372 | . 342 . . . 108 308 138 18 167 . 198 . 272 372 130 337 Average Temperature 77 | . 110 . . . 41 91 39 7 35 . 39 . 61 98 56 108 Received Heat Transfer 1179 | . 174 . . . 198 162 . . . . 474 . 54 . . 117 Effects 5 | . 2 . . . . . . . . . . . . 2 . 1 Energy Bleed 3 | . . . . . . . . . . . . . . 2 . 1 Interference 2 | . 2 . . . . . . . . . . . . . . . Siege Activations . | . . . . . . . . . . . . . . . . . Martial Activations . | . . . . . . . . . . . . . . . . . Shielding Activations . | . . . . . . . . . . . . . . . . . Robots Disrupted . | . . . . . . . . . . . . . . . . . Combat Hostiles . | . . . . . . . . . . . . . . . . . Robots Corrupted . | . . . . . . . . . . . . . . . . . Combat Hostiles . | . . . . . . . . . . . . . . . . . Parts Fried . | . . . . . . . . . . . . . . . . . Impact Corruptions . | . . . . . . . . . . . . . . . . . Robots Melted 2 | . . . . . . . . . . . 2 . . . . . Combat Hostiles 2 | . . . . . . . . . . . 2 . . . . . Parts Melted 27 | . 2 . . . . 4 8 . . . 6 . 4 2 . 1 Heat Transferred 13282 | . 1184 . . . . 2072 1887 555 814 . 3232 . 1369 720 111 1338 Parts Sabotaged . | . . . . . . . . . . . . . . . . . Parts Stolen . | . . . . . . . . . . . . . . . . . Parts Stripped . | . . . . . . . . . . . . . . . . . Power Chain Reactions 1 | . . . . . . . . . . . 1 . . . . . Alert | -11 -10 -10 -10 -9 -8 -8 -7 -7 -7 -7 -6 -6 -6 -5 -5 -5 ------- Run | Yrd Mat Min Exi Min Mat Sto Fac Low Low Dat Pro Fac DSF Fac Was Fac Maximum Alert Level 5 | . 1 . . . 1 2 1 . . . . . 2 1 . 5 Low Security (%) 56 | 100 97 100 . 100 42 27 97 . . . . 100 67 38 100 3 Level 1 18 | . 2 . . . 57 50 2 . . . . . 15 61 . 5 Level 2 11 | . . . . . . 22 . . . . . . 16 . . 30 Level 3 3 | . . . . . . . . . . . . . . . . 14 Level 4 1 | . . . . . . . . . . . . . . . . 6 Level 5 . | . . . . . . . . . . . . . . . . 2 High Security 8 | . . . . . . . . . . . . . . . . 35 Max Security . | . . . . . . . . . . . . . . . . . Sterilizations 1 | . . . . . . . . . . . . . 1 . . . Peak Influence 3918 | 10 204 66 . . 318 464 203 . . . . 150 484 254 65 3918 Initial 254 | . . 66 . . . 67 203 . . . . 150 73 254 65 . Average 448 | 1 122 15 . . 187 260 103 . . . . 127 189 216 17 1459 Influence Increases 8122 | 35 536 . . . 511 752 207 210 105 . 530 155 471 22 . 4588 Destroy 0b10 Robot/C 3780 | . 300 . . . 300 440 80 180 80 . 420 . 300 . . 1680 Destroy 0b10 Robot/NC 485 | 35 55 . . . 60 90 65 . 15 . 20 . 10 15 . 120 Destroy Leader 700 | . 68 . . . 94 124 32 30 10 . 30 . 50 2 . 260 Allied During Kill 1661 | . . . . . . . . . . . 30 . . . . 1631 Successful Hack 56 | . 22 . . . 2 3 14 . . . . 5 . 5 . 5 Disable Machine 345 | . 15 . . . . 60 15 . . . . . 15 . . 240 Destroy Structure 795 | . 1 . . . 25 35 1 . . . . . 81 . . 652 Advance Influence 150 | . . . . . . . . . . . . 150 . . . . Partial Spotted 15 | . . . . . 15 . . . . . . . . . . . Lose Combat Pursuer 135 | . 75 . . . 15 . . . . . 30 . 15 . . . Influence Decreases 4304 | 35 366 170 . . 351 465 586 214 160 9 530 50 92 320 186 770 Entered New Map 872 | . . 104 . . . 93 244 26 13 9 . . 32 230 121 . Time Decay 2842 | 35 356 66 . . 321 362 342 188 147 . 430 50 . 90 65 390 Lost Part 400 | . 10 . . . 30 10 . . . . 80 . 60 . . 210 Lost Ally 190 | . . . . . . . . . . . 20 . . . . 170 Squads Dispatched 39 | . 4 . . . 4 3 3 . . . 1 . 1 3 . 20 Investigation 5 | . 2 . . . 1 1 . . . . . . . 1 . . Extermination 3 | . . . . . . . 2 . . . . . . . . 1 Reinforcement 12 | . 2 . . . 2 2 1 . . . . . 1 1 . 3 Assault 17 | . . . . . . . . . . . 1 . . . . 16 Garrison 2 | . . . . . 1 . . . . . . . . 1 . . Intercept . | . . . . . . . . . . . . . . . . . Searches Triggered . | . . . . . . . . . . . . . . . . . Construction Impeded 2 | . . . . . . 1 . . . . . . . . . 1 Haulers Reinforced 2 | . . . . . . . . . . . . . . 1 . 1 Active Scanning Responses . | . . . . . . . . . . . . . . . . . Cargo Convoy Interrupts 1 | . . . . . . . . . . . . . . . . 1 Stealth | -11 -10 -10 -10 -9 -8 -8 -7 -7 -7 -7 -6 -6 -6 -5 -5 -5 --------- Run | Yrd Mat Min Exi Min Mat Sto Fac Low Low Dat Pro Fac DSF Fac Was Fac Distress Signals 10 | . 2 . . . 3 1 . . . . 1 . . . . 3 Communications Jammed . | . . . . . . . . . . . . . . . . . Distress Signals . | . . . . . . . . . . . . . . . . . Times Spotted 223 | . 31 1 . . 22 25 8 9 4 . 26 . 15 2 . 80 Peak Tracking Total 10 | . 7 1 . . 8 4 1 4 3 . 9 . 6 1 . 10 Tactical Retreats 6 | . 3 . . . 1 . . . . . 1 . 1 . . . Traps | -11 -10 -10 -10 -9 -8 -8 -7 -7 -7 -7 -6 -6 -6 -5 -5 -5 ------- Run | Yrd Mat Min Exi Min Mat Sto Fac Low Low Dat Pro Fac DSF Fac Was Fac Traps Triggered 5 | . 3 . . . . . . . . . . . . 2 . . Indirectly . | . . . . . . . . . . . . . . . . . Trap Hack Attempts . | . . . . . . . . . . . . . . . . . Triggered . | . . . . . . . . . . . . . . . . . Disarmed . | . . . . . . . . . . . . . . . . . Reprogrammed . | . . . . . . . . . . . . . . . . . Reused . | . . . . . . . . . . . . . . . . . Traps Extracted . | . . . . . . . . . . . . . . . . . Installed . | . . . . . . . . . . . . . . . . . Triggered . | . . . . . . . . . . . . . . . . . Machines | -11 -10 -10 -10 -9 -8 -8 -7 -7 -7 -7 -6 -6 -6 -5 -5 -5 ---------- Run | Yrd Mat Min Exi Min Mat Sto Fac Low Low Dat Pro Fac DSF Fac Was Fac Machines Disabled 23 | . 1 . . . . 4 1 . . . . . 1 . . 16 Max in Single Turn 3 | . 1 . . . . 1 1 . . . . . 1 . . 3 Machines Repaired . | . . . . . . . . . . . . . . . . . Machines Dismantled . | . . . . . . . . . . . . . . . . . Machines Sabotaged . | . . . . . . . . . . . . . . . . . Overloaded Fab Kills . | . . . . . . . . . . . . . . . . . Hacking | -11 -10 -10 -10 -9 -8 -8 -7 -7 -7 -7 -6 -6 -6 -5 -5 -5 --------- Run | Yrd Mat Min Exi Min Mat Sto Fac Low Low Dat Pro Fac DSF Fac Was Fac Machines Accessed 25 | . 3 . 1 . 1 4 2 . 2 4 . 2 . 3 . 3 Terminals 10 | . 2 . . . . 3 1 . 1 . . 1 . 1 . 1 Fabricators 1 | . . . . . . . . . . . . 1 . . . . Repair Stations 3 | . . . . . . 1 . . . . . . . 1 . 1 Recycling Units 2 | . 1 . . . . . . . . . . . . . . 1 Scanalyzers 3 | . . . . . 1 . 1 . . . . . . 1 . . Garrison Access . | . . . . . . . . . . . . . . . . . Total Hacks 71 | . 6 . 1 . 3 8 3 . 2 34 . 2 . 6 . 6 Successful 54 | . 6 . 1 . 2 3 1 . 2 34 . 1 . 1 . 3 Failed 17 | . . . . . 1 5 2 . . . . 1 . 5 . 3 Catastrophic 3 | . . . . . . . 1 . . . . 1 . 1 . . Database Lockouts . | . . . . . . . . . . . . . . . . . Manual 5 | . 4 . 1 . . . . . . . . . . . . . Terminals 18 | . 5 . . . . 6 2 . 1 . . 1 . 2 . 1 Fabricators 1 | . . . . . . . . . . . . 1 . . . . Repair Stations 7 | . . . . . . 2 . . . . . . . 2 . 3 Recycling Units 3 | . 1 . . . . . . . . . . . . . . 2 Scanalyzers 6 | . . . . . 3 . 1 . . . . . . 2 . . Garrison Access . | . . . . . . . . . . . . . . . . . Terminal Hacks 45 | . 3 . 1 . . 1 1 . 2 34 . 1 . 1 . 1 Record 12 | . . . . . . . . . 1 11 . . . . . . Part Schematic 15 | . 2 . . . . . . . . 13 . . . . . . Robot Schematic 7 | . . . . . . . . . . 7 . . . . . . Prototype ID Bank 4 | . 1 . . . . . . . . 3 . . . . . . Open Door 2 | . . . . . . 1 . . 1 . . . . . . . Open DSF 3 | . . . . . . . . . . . . 1 . 1 . 1 Branch Access Points 1 | . . . . . . . 1 . . . . . . . . . Proto ID Catalog 1 | . . . 1 . . . . . . . . . . . . . Fabricator Hacks . | . . . . . . . . . . . . . . . . . Repair Station Hacks 4 | . . . . . . 2 . . . . . . . . . 2 Scan Component 2 | . . . . . . 1 . . . . . . . . . 1 Repair 2 | . . . . . . 1 . . . . . . . . . 1 Recycling Unit Hacks 1 | . 1 . . . . . . . . . . . . . . . Retrieve Components 1 | . 1 . . . . . . . . . . . . . . . Scanalyzer 2 | . . . . . 2 . . . . . . . . . . . Retrieve Study 2 | . . . . . 2 . . . . . . . . . . . Garrison Access Hacks . | . . . . . . . . . . . . . . . . . Unauthorized Hacks 2 | . 2 . . . . . . . . . . . . . . . Terminals 2 | . 2 . . . . . . . . . . . . . . . Botnet 1 | . 1 . . . . . . . . . . . . . . . Operators 1 | . 1 . . . . . . . . . . . . . . . Fabricators . | . . . . . . . . . . . . . . . . . Repair Stations . | . . . . . . . . . . . . . . . . . Recycling Units . | . . . . . . . . . . . . . . . . . Scanalyzers . | . . . . . . . . . . . . . . . . . Garrison Access . | . . . . . . . . . . . . . . . . . Data Cores Recovered 1 | . . . . . . . 1 . . . . . . . . . Used 1 | . . . . . . . 1 . . . . . . . . . Hacking Detections 13 | . 1 . . . 1 3 2 . . . . 1 . 3 . 2 Full Trace Events 3 | . . . . . 1 1 . . . . . . . 1 . . Feedback Events . | . . . . . . . . . . . . . . . . . Feedback Blocked . | . . . . . . . . . . . . . . . . . Robot Schematics Acquired 7 | . . . . . . . . . . 7 . . . . . . Robots Built . | . . . . . . . . . . . . . . . . . Authchips . | . . . . . . . . . . . . . . . . . Time . | . . . . . . . . . . . . . . . . . Total Robot Build Rating . | . . . . . . . . . . . . . . . . . Part Schematics Acquired 15 | . 2 . . . . . . . . 13 . . . . . . Parts Built . | . . . . . . . . . . . . . . . . . Authchips . | . . . . . . . . . . . . . . . . . Time . | . . . . . . . . . . . . . . . . . Total Part Build Rating . | . . . . . . . . . . . . . . . . . Part Studies Acquired 2 | . . . . . 2 . . . . . . . . . . . Parts Repaired 2 | . . . . . . 1 . . . . . . . . . 1 Time 133 | . . . . . . 38 . . . . . . . . . 95 Parts Recycled . | . . . . . . . . . . . . . . . . . Recycled Matter . | . . . . . . . . . . . . . . . . . Retrieved Matter . | . . . . . . . . . . . . . . . . . Retrieved Components 10 | . 10 . . . . . . . . . . . . . . . Parts Scanalyzed . | . . . . . . . . . . . . . . . . . Part Schematics Acquired . | . . . . . . . . . . . . . . . . . Parts Damaged . | . . . . . . . . . . . . . . . . . Bothacking | -11 -10 -10 -10 -9 -8 -8 -7 -7 -7 -7 -6 -6 -6 -5 -5 -5 ------------ Run | Yrd Mat Min Exi Min Mat Sto Fac Low Low Dat Pro Fac DSF Fac Was Fac Used RIF Installer . | . . . . . . . . . . . . . . . . . Robots Hacked . | . . . . . . . . . . . . . . . . . Non-combat . | . . . . . . . . . . . . . . . . . Combat . | . . . . . . . . . . . . . . . . . Robot Hacks Applied . | . . . . . . . . . . . . . . . . . Relay Couplers Released . | . . . . . . . . . . . . . . . . . Fabnet Peak Effective % . | . . . . . . . . . . . . . . . . . Robots Rewired 2 | . . . . . . . . . . . 2 . . . . . Allies Hacked 1 | . . . . . . . . . . . . . . . . 1 Hacks Repelled . | . . . . . . . . . . . . . . . . . Allies | -11 -10 -10 -10 -9 -8 -8 -7 -7 -7 -7 -6 -6 -6 -5 -5 -5 -------- Run | Yrd Mat Min Exi Min Mat Sto Fac Low Low Dat Pro Fac DSF Fac Was Fac Total Allies 22 | . . . . . . . . . . . 2 . . . 20 . Largest Group 20 | . . . . . . . . . . . 2 . . . 20 20 Highest-Rated Group 755 | . . . . . . . . . . . 61 . . . 755 755 Highest-Rated Ally 50 | . . . . . . . . . . . 32 . . . 50 50 Initial Warlord ECA Mod 9 | . . . . . . . . . . . . . . 9 9 9 Total Orders . | . . . . . . . . . . . . . . . . . Ally Attacks 281 | . . . . . . . . . . . 38 . . . . 243 Total Damage 10803 | . . . . . . . . . . . 1201 . . . . 9602 Kills 59 | . . . . . . . . . . . 6 . . . . 53 Allies Corrupted . | . . . . . . . . . . . . . . . . . Allies Melted 1 | . . . . . . . . . . . 1 . . . . . Intel | -11 -10 -10 -10 -9 -8 -8 -7 -7 -7 -7 -6 -6 -6 -5 -5 -5 ------- Run | Yrd Mat Min Exi Min Mat Sto Fac Low Low Dat Pro Fac DSF Fac Was Fac Active Infowar (turns) 3342 | 120 894 331 289 37 361 831 479 . . . . . . . . . Optics 1450 | . . . . . 140 831 479 . . . . . . . . . Terrain 221 | . . . . . 221 . . . . . . . . . . . Seismic 1671 | 120 894 331 289 37 . . . . . . . . . . . . Robot Analysis Total . | . . . . . . . . . . . . . . . . . Derelict Logs Recovered 8 | . . . . . . . . 2 3 . 3 . . . . . Drone Launches . | . . . . . . . . . . . . . . . . . Drone Recoveries . | . . . . . . . . . . . . . . . . . Exploration | -11 -10 -10 -10 -9 -8 -8 -7 -7 -7 -7 -6 -6 -6 -5 -5 -5 ------------- Run | Yrd Mat Min Exi Min Mat Sto Fac Low Low Dat Pro Fac DSF Fac Was Fac Turns Passed 9819 | 210 894 331 289 41 811 831 770 738 694 112 1337 109 640 195 283 1534 Spaces Moved 6222 | 124 497 268 250 34 328 312 528 546 498 87 842 92 386 356 211 863 Core 9 | 8 . . . . . . . . . . . . . . 1 . Treads 419 | . . . . 2 320 97 . . . . . . . . . . Legs 1071 | 116 141 . . . . . . . . . . . . . . 814 Wheels 3817 | . 356 268 250 32 8 215 528 546 498 87 842 92 95 . . . Hover 906 | . . . . . . . . . . . . . 291 356 210 49 Flight . | . . . . . . . . . . . . . . . . . Fastest Speed 24 | 50 115 115 115 115 125 115 115 130 130 130 115 115 28 24 28 28 Average Speed 120 | 115 119 115 115 117 187 158 116 130 130 130 129 115 108 32 44 130 Slowest Speed 750 | 120 260 115 115 160 240 240 130 130 130 130 130 115 272 112 750 430 Overloaded Moves . | . . . . . . . . . . . . . . . . . Propulsion Burnouts . | . . . . . . . . . . . . . . . . . Robots Hopped . | . . . . . . . . . . . . . . . . . Potential Cave-ins . | . . . . . . . . . . . . . . . . . Cave-ins Triggered 1 | . . . . . . . . . . . . . 1 . . . Exploration Rate (%) 44 | 5 62 53 61 13 17 53 11 67 70 69 80 3 91 9 86 11 Regions Visited 16 Branch Regions 8 Pre-discovered Areas 4 | . . 1 . . . . . 2 . 1 . . . . . . Known Exits Taken 4 | . . . . . 1 . 1 . . . 1 1 . . . . Unknown Exits Taken 9 | 1 1 1 1 1 . 1 . 1 1 1 . . . . . . Scrap Searched 7 | . . . . . . . . 2 4 . 1 . . . . . Spaces Dug . | . . . . . . . . . . . . . . . . . Terrain Destroyed 624 | . . . . . 25 35 . 30 5 . 52 . 118 . . 359 Melee . | . . . . . . . . . . . . . . . . . Projectile 19 | . . . . . . 4 . 1 . . 3 . 3 . . 8 AOE 605 | . . . . . 25 31 . 29 5 . 49 . 115 . . 351 Terrain Rammed . | . . . . . . . . . . . . . . . . . Walls Destroyed . | . . . . . . . . . . . . . . . . . Machines Disabled . | . . . . . . . . . . . . . . . . . Actions | -11 -10 -10 -10 -9 -8 -8 -7 -7 -7 -7 -6 -6 -6 -5 -5 -5 --------- Run | Yrd Mat Min Exi Min Mat Sto Fac Low Low Dat Pro Fac DSF Fac Was Fac Total 7711 | 157 649 282 253 35 449 520 618 557 518 86 967 94 558 433 389 1146 Wait 636 | . 32 5 . . 28 103 18 . 1 . 16 . 59 65 144 165 Move 6207 | 123 496 267 249 33 327 311 527 545 497 86 841 91 385 356 210 863 Hop . | . . . . . . . . . . . . . . . . . Pick Up 109 | 9 16 2 1 . 15 9 16 1 1 . 5 1 18 . 3 12 Fast Attach 70 | 7 5 . . . 12 8 3 . . . 6 1 13 2 8 5 Attach 45 | . 1 . . . 2 1 3 . 1 . 7 1 16 3 . 10 Detach 17 | . . . . . . . . . . . . . 10 4 . 3 Swap 57 | . 7 . . 1 8 11 2 2 2 . 8 . 2 . 2 12 Drop 130 | 1 12 2 3 1 21 16 17 1 3 . 5 . 28 1 12 7 Fire 399 | 17 80 6 . . 36 61 32 8 12 . 54 . 27 2 2 62 Melee 10 | . . . . . . . . . . . . . . . 4 6 Ram . | . . . . . . . . . . . . . . . . . Kick 1 | . . . . . . . . . . . . . . . . 1 Crush . | . . . . . . . . . . . . . . . . . Escape Stasis . | . . . . . . . . . . . . . . . . . Rewire 30 | . . . . . . . . . 1 . 25 . . . 4 . Trap . | . . . . . . . . . . . . . . . . . Miscellaneous . | . . . . . . . . . . . . . . . . . Route ------- -11/Scrapyard -10/Materials (discovered 3 exits: [*Mat] / [*Min x2]) -10/Mines -10/Exiles -9/Mines -8/Materials -8/Storage -7/Factory (discovered 2 exits: *Low x2) -7/Lower Caves -7/Lower Caves -7/Data Miner -6/Proximity Caves -6/Factory (discovered 4 exits: Fac / Low x2 / DSF) -6/DSF -5/Factory -5/Waste -5/Factory History --------- Turn | Location | Event 6 | -11/Scrapyard | Discovered new exit (range 15) 211 | -11/Scrapyard | Entered Materials 267 | -10/Materials | Discovered new exit (range 16) 307 | -10/Materials | Build established: Mutant 569 | -10/Materials | Discovered new exit (range 7) 712 | -10/Materials | Discovered new exit (range 15) 1105 | -10/Materials | Entered Mines 1134 | -10/Mines | Assembled infested the area 1139 | -10/Mines | Assisted by a Guerilla fighting off Assembled 1144 | -10/Mines | Learned location of Storage (-8) 1198 | -10/Mines | Received a Rocket Launcher from a helpful Derelict 1371 | -10/Mines | Core integrity fell below 50% 1401 | -10/Mines | A weapon hastily lodged in a ceiling crevice suddenly fell to the ground 1432 | -10/Mines | Deemed a non-threat by the Exiles lab entrance 1432 | -10/Mines | Discovered new exit (range 5) 1436 | -10/Mines | Entered Exiles 1465 | -10/Exiles | Met 8R-AWN 1485 | -10/Exiles | Met EX-HEX 1517 | -10/Exiles | Met EX-BIN 1530 | -10/Exiles | Aligned with FarCom system 1531 | -10/Exiles | Given EX-Vault access code 1570 | -10/Exiles | Opened EX-Vault 1578 | -10/Exiles | Found Firepult 1602 | -10/Exiles | Warned to stay clear of 0b10 Research branches 1640 | -10/Exiles | Met EX-DEC 1709 | -10/Exiles | Discovered new exit (range 15) 1725 | -10/Exiles | Left Exiles lab with Firepult 1725 | -10/Exiles | Entered Mines 1748 | -9/Mines | Discovered new exit (range 10) 1766 | -9/Mines | Entered Materials 1766 | -8/Materials | Evolved 4 slots: Propulsion x1, Utility x2, Weapon x1 1909 | -8/Materials | Discovered new exit (range 15) 1933 | -8/Materials | Garrison activated, responded to threat 1963 | -8/Materials | Lost 3 parts (1p1n1w) 2206 | -8/Materials | Identified exit to Storage 2329 | -8/Materials | Build established: Scavenger-Skirmisher 2577 | -8/Materials | Entered Storage 2675 | -8/Storage | Build established: Skirmisher 3397 | -8/Storage | Repaired Imp. Grenade Launcher 3400 | -8/Storage | Discovered new exit (range 5) 3408 | -8/Storage | Entered Factory 3408 | -7/Factory | Evolved 2 slots: Propulsion x1, Utility x1 3608 | -7/Factory | Identified exit to Lower Caves 4178 | -7/Factory | Entered Lower Caves 4477 | -7/Lower Caves | Build established: Gunner 4588 | -7/Lower Caves | Learned location of Extension (-4) 4596 | -7/Lower Caves | Learned location of Zion (-6) 4900 | -7/Lower Caves | Discovered new exit (range 13) 4916 | -7/Lower Caves | Entered another Lower Caves area 4932 | -7/Lower Caves | Found Prototype Device 4953 | -7/Lower Caves | Learned 12 Factory zone layouts 5017 | -7/Lower Caves | Learned Factory emergency access door positions 5218 | -7/Lower Caves | Build established: Tank 5510 | -7/Lower Caves | Encountered a Warlord checkpoint 5597 | -7/Lower Caves | Discovered new exit (range 8) 5610 | -7/Lower Caves | Entered Data Miner 5610 | -7/Data Miner | Discovered new exit (range 6) 5635 | -7/Data Miner | Met Data Miner 5668 | -7/Data Miner | Learned location of Section 7 (-2) 5668 | -7/Data Miner | Acquired the access code to Warlord's prototype stash 5694 | -7/Data Miner | Received God Mode back door access code from Data Miner 5722 | -7/Data Miner | Entered Proximity Caves 5735 | -6/Proximity Caves | Spotter reported a threat 5821 | -6/Proximity Caves | Attracted the attention of an 0b10 outpost 6249 | -6/Proximity Caves | Identified exit to Factory 6256 | -6/Proximity Caves | Learned location of 1 exit from Factory 6581 | -6/Proximity Caves | Spotted B-75 Beast 6607 | -6/Proximity Caves | Allies destroyed B-75 Beast 6637 | -6/Proximity Caves | Lost 3 parts (1p2u) 6640 | -6/Proximity Caves | Attracted the attention of an 0b10 checkpoint 6701 | -6/Proximity Caves | Lost 3 parts (1n2w) 6947 | -6/Proximity Caves | Build established: Scavenger-Tank 7059 | -6/Proximity Caves | Entered Factory 7059 | -6/Factory | Evolved 2 slots: Utility x1, Weapon x1 7060 | -6/Factory | Identified exit to Lower Caves 7061 | -6/Factory | Identified exit to Factory 7168 | -6/Factory | Identified exit to DSF 7168 | -6/Factory | Entered DSF 7278 | -6/DSF | Additional patrols routed to DSF 7301 | -6/DSF | Identified Heart of Steel 7305 | -6/DSF | Crushed by falling debris 7328 | -6/DSF | Discovered exit to Factory (range 15) 7336 | -6/DSF | Lost 6 parts (4u2w) 7705 | -6/DSF | Sterilization system engaged 7725 | -6/DSF | Ambient heat levels rising (+10) 7732 | -6/DSF | Destroyed 7 combat bots 7740 | -6/DSF | Ambient heat levels rising (+10) 7755 | -6/DSF | Ambient heat levels rising (+10) 7770 | -6/DSF | Ambient heat levels rising (+10) 7785 | -6/DSF | Ambient heat levels rising (+10) 7800 | -6/DSF | Ambient heat levels rising (+10) 7808 | -6/DSF | Entered Factory 7808 | -5/Factory | Evolved 2 slots: Propulsion x1, Utility x1 7809 | -5/Factory | Identified exit to Upper Caves 7974 | -5/Factory | Garrison activated, responded to threat 8003 | -5/Factory | Sucked down chute 8003 | -5/Factory | Entered Waste 8004 | -5/Waste | Joined by Warlord forces that had cleared the area 8233 | -5/Waste | Discovered new exit (range 13) 8286 | -5/Waste | Entered Factory 8286 | -5/Factory | Accompanied by 20 allies 8386 | -5/Factory | Lost 6 allies 8499 | -5/Factory | Repaired Broken Mic. Antimatter Reactor? 8586 | -5/Factory | Build established: Mutant 8886 | -5/Factory | First assault squad dispatched 9198 | -5/Factory | Cargo convoy interrupted 9276 | -5/Factory | High security lockdown imminent 9356 | -5/Factory | High security lockdown engaged 9428 | -5/Factory | Build established: Scavenger-Skirmisher 9564 | -5/Factory | P-70 Sage assimilated allied VI-X4P(d) 9587 | -5/Factory | Destroyed 12 combat bots 9605 | -5/Factory | Lost 3 allies 9667 | -5/Factory | Lost 3 allies 9688 | -5/Factory | Destroyed 11 combat bots 9696 | -5/Factory | P-70 Sage assimilated allied P5-7VE(g) 9726 | -5/Factory | Lost 3 allies 9742 | -5/Factory | System corruption reached 10% 9783 | -5/Factory | Destroyed 12 combat bots 9795 | -5/Factory | Core integrity fell below 50% 9807 | -5/Factory | Core integrity fell below 20% 9820 | -5/Factory | Destroyed by P-70 Sage with High-powered Shock Rifle Last Messages --------------- 09803_ Slug penetrates I-47 Archangel. 09803_ Acquired 4 matter. 09804_ The unstable cave ceiling collapses. 09804_ Acquired 37 matter. 09804_ Slug penetrates Wall. 09804_ Penetrated by Slug. 09805_ Acquired Mic. Antimatter Reactor. 09806_ Penetrated by Slug. 09808_ Linear Gravjet destroyed. 09808_ Acquired Linear Gravjet. 09808_ Penetrated by Slug. 09808_ Enh. Force Lance destroyed. 09808_ Penetrated by Slug. 09808_ Mic. Antimatter Reactor destroyed. 09810_ The unstable cave ceiling collapses. 09810_ Acquired Linear Gravjet. 09811_ System corrupted: Heat flow error (+225). 09811_ Penetrated by Slug. 09812_ Slug penetrates Wall. 09812_ Linear Gravjet destroyed. Map ----- +----------------------------------------------------+ | [ = = """??? | | = ! # ! ? | | [ % % ##########?? | | #########??? | | [ """ #??? | | # [ "Y" #??? | | # # " " #??? | | /!# ##### #??? | | ! #??## # gg#l ##?? | | #???# !b!=! #p # "#?? | | ! %+"]]! # i!= [# # [[! ##?? | | [ # ]!! ]# !# + [[! #??? | | # ]! ?# # # [!! #??? | | # # ??# # ##########??? | | # ??# #] # #??? | | # ???# # # #??? | | ? # ????# # # #??? | | ? + ?????# ####### # #??? | | ???? ???????###?##### + #??? | | ????????????????????# # # #??? | | ????????????????????# ## # #??? | | ????????????????????## # # #??? | | ?????????????????????## # # #??? | | ??????????????????????# # # ########??? | | ??????????????????????### # # | | ??????????????????????# #@ + """ """?? | | ????????????????????### # # """ ""??? | | ???????????????????## # # """ """?? | | ?????????????????### # #* # # | | ??????????????# """S""" # # """ ""??? | | ??????????????# """ "" # # """ ""??? | | ??????????????# # # """ ????? | | ??????????????# [[ + # ??? | | ??????????????# [[ # # """ """?? | | ??????????????# [[ # """ ""??? | | ??????????????# # """ ""??? | | ??????????????# = # ?????? | | ??????????????######### ##??##??????? | | ??????????????????????# ###?????????? | | ??????????????????????## ##?????????? | | ???????????############ #?????????? | | ???????????# ] # #?????????? | | ???????????# ###?????????? | | ???????????# ]]] # T#??????????? | | ???????????# [ ]]] # #??????????? | | ???????????# ]]] # ##??????????? | | ???????????# + #???????????? | | ???????????# # #???????????? | | ???????????# """ # #???????????? | | ???????????# """ """ # #???????????? | +----------------------------------------------------+ Best States ------------- Heat Dissipation 79 Energy Generation 19 Energy Capacity 290 Matter Stores 300 Matter Capacity 300 Sight Range 20 Terrain Scan Range 16 Terrain Scan Density 10 EM Shielding 2 Armor Coverage 450 Propulsion Shielding 66 Evasion (%) 70 Targeting Accuracy 8 Launcher Accuracy 30 Target Analysis 6 Core Analysis 6 Recoil Reduction 3 Particle Charging 20 Salvage Targeting 2 Authchip Count 3 Item Schematics ----------------- Hcp. Storage Unit | -10/Materials | Hacked Lrg. Storage Unit | -10/Materials | Hacked Combat Drone Bay | -7/Data Miner | Free Lgt. Regenerative Plating | -7/Data Miner | Free Biomechanical Wings | -7/Data Miner | Free Exp. Power Shielding | -7/Data Miner | Free Force Rifle | -7/Data Miner | Free Gyrokinetic Inverter | -7/Data Miner | Free Remote Force Field | -7/Data Miner | Free Mass Driver | -7/Data Miner | Free Hvy. Machine Gun | -7/Data Miner | Free Lrn. Proton Cannon | -7/Data Miner | Free Neutrino Core | -7/Data Miner | Free Graphene Brace | -7/Data Miner | Free Adv. Power Amplifier | -7/Data Miner | Free Robot Schematics ------------------ B-48 Gladiator | -7/Data Miner | Free H-55 Commando | -7/Data Miner | Free S-27 Virus | -7/Data Miner | Free G-50 Soldier | -7/Data Miner | Free D-63 Destroyer | -7/Data Miner | Free Y-64 Sentinel | -7/Data Miner | Free H-66 Slayer | -7/Data Miner | Free Fabricated ------------ Nothing Repaired ---------- Imp. Grenade Launcher | 66% | -8/Storage Mic. Antimatter Reactor | 17% | -5/Factory | Broken Studied --------- Lgt. Nuclear Core | -8/Materials | Hacked Com. Wheel | -8/Materials | Hacked Alien Tech Used ----------------- None Achievements -------------- None Challenges ------------ None Game ------ Seed BackdoorReactionMegashotty Manual? 0 Play Time 01:53:18 Cumulative 448.3 hours Start 2026.09.06 @ 02:19:06 End 2026.09.06 @ 04:15:22 Sessions 1 Manual Loads 0 Difficulty Rogue Special Mode None Game No. 222 Rogue 222 Adventurer 0 Explorer 0 Win Type - Total 14 Types 7/1/1/1/1/0/1/1/0/1 Lore% 71 Gallery% 74 Achievement% 67 Wizard Run 0 Options --------- Layout 1 ASCII 0 Keyboard 0 Movement Arrows Keybinds 0 Fullscreen 1 Font 18/SmallcapsGlow Map View 54x44 Zoom Use 0% Tactical HUD 1 Map Filters NONE Filters NONE Steam 0 RUN: 6abcb119-b8e2-4a24-b984-0630e96aa4f5